[Event "2nd Namma Bengaluru Open-A 2025"]
[Site "Bengaluru"]
[Date "2025.04.15"]
[Round "7.7"]
[White "Schekachikhin, Maksim"]
[Black "Iniyan, Pa"]
[Result "0-1"]
[Annotator "TA"]
[ECO "B90"]
[WhiteElo "2370"]
[BlackElo "2578"]
[PlyCount "48"]
[EventDate "2025.04.10"]
[EventType "swiss"]
[EventCountry "IND"]
[SourceTitle "playchess.com"]
[Source "ChessBase"]
[SourceQuality "1"]
[TimeControl "5400+30"]

{[%evp 11,48,26,16,14,23,0,0,0,14,0,0,0,19,-16,0,-18,-17,-116,-105,-157,-133,-322,-336,-511,-497,-491,-495,-947,-953,-953,-964,-893,-877,-1018,-975,-1272,-1272,-1186,-1194]} 1. e4 {[%emt 0:03:02]} c5 {[%emt 0:01:06]} 2. Nf3 {[%emt 0:00:18]} d6 {[%emt 0:00:11]} 3. d4 {[%emt 0:00:18]} cxd4 {[%emt 0:00:09]} 4. Nxd4 {[%emt 0:00:08]} Nf6 {[%emt 0:00:09]} 5. Nc3 {[%emt 0:00:11]} a6 {[%emt 0:00:08]} 6. h3 {[%emt 0:00:29]} e5 {[%emt 0:02:22]} 7. Nf3 {[%emt 0:00:59]} h6 {[%emt 0:02:33]} 8. Nh2 {[%emt 0:01:34]} Be6 {[%emt 0:01:39]} 9. Ng4 {[%emt 0:00:36] The position is equal.} Nbd7 {[%emt 0:00:10]} 10. Qf3 {[%emt 0:13:08]} Rc8 {[%emt 0:04:00]} 11. Be2 {[%emt 0:01:59]} Be7 {[%emt 0:10:08]} 12. Bd2 {[%emt 0:07:54]} Qb6 {[%emt 0:17:13]} 13. O-O-O {[%emt 0:08:31]} Qc6 {[%emt 0:00:08][%cal Oe6a2]} 14. Ne3 {[%emt 0:06:22]} (14. a3 $11 {keeps the balance.}) 14... Nc5 $1 $17 {[%emt 0:00:58]} 15. Ncd5 {[%emt 0:18:54]} (15. Ned5 $142) 15... Nfxe4 {[%emt 0:10:20]} 16. Nxe7 {[%emt 0:06:06] [#] Now White is beyond hope.} (16. Be1 $17 {is a better defense.}) 16... Qa4 $1 $19 {[%emt 0:02:00] ( -> ...Nb3+)} (16... Kxe7 17. Bb4 $17) 17. N3f5 {[%emt 0:15:51] [#]} (17. Nxc8 Qxa2 18. Nxd6+ Kf8) (17. Bc4 $142 Bxc4 (17... Kxe7 18. Nd5+ Bxd5 19. Bxd5 $17) 18. Nxc4 (18. Nxc8 Qxa2 19. Nxd6+ Kf8) 18... Qxa2 (18... Kxe7 $2 19. Na3 $19) 19. Qa3 (19. Nxd6+ $2 Nxd6 $19) 19... Qxa3 (19... Qxc4 $2 20. Nxc8 O-O 21. Ne7+ Kh8 22. Be3 $18) 20. bxa3 Kxe7 21. Be1) 17... Qxa2 $1 {[%emt 0:06:34][%cal Ra2a1] Black is clearly winning.} (17... Nb3+ 18. Qxb3 Bxb3 19. Nxc8 Bxc2 20. Nfxd6+ (20. Ncxd6+ Nxd6 21. Nxd6+ Ke7 $11) 20... Kf8 21. Be3 $11) 18. c4 {[%emt 0:00:35]} (18. Nxg7+ $2 {is the wrong capture.} Kxe7 19. c4 Nb3+ (19... Bxc4 $2 20. Nf5+ Kd7 21. Bxc4 $19) (19... Bxc4 $2 20. Nf5+ Kd7 21. Bxc4 $19)) (18. Qa3 $2 Nb3+) 18... Bxc4 {[%emt 0:11:13]} (18... Nb3+ $2 19. Kc2 Nbxd2 (19... Nexd2 20. Rxd2 Nxd2 21. Qxb7 $11) 20. Rxd2 Rxc4+ (20... Nxd2 21. Qxb7 Rxc4+ 22. Bxc4 $11) 21. Bxc4 Qxc4+ 22. Kd1 Nxd2 23. Kxd2 Qb4+ 24. Qc3 Qf4+ 25. Qe3 $19) 19. Nxc8 {[%emt 0:04:47]} (19. Bxc4 $142 Nb3+ 20. Qxb3 Qxb3 21. Nxc8 Qxc4+ 22. Bc3 Qxc8 23. Nxd6+ Nxd6 24. Rxd6) 19... Qa1+ {[%emt 0:00:40]} 20. Kc2 {[%emt 0:00:07]} Qa4+ {[%emt 0:00:04]} 21. Kc1 {[%emt 0:02:45]} Nb3+ {[%emt 0:00:21]} 22. Qxb3 {[%emt 0:00:21]} Bxb3 {[%emt 0:00:16][%cal Ra4a1]} 23. Ncxd6+ {[%emt 0:00:12]} Kd7 {[%emt 0:01:54][%cal Ra4a1]} 24. Bd3 {[%emt 0:00:18]} Nxf2 {[%emt 0:03:33] Weighted Error Value: White=1.05/Black=0.02 (flawless) .  Loses game:     	White=1     	---        Mistake:       	White=4     	---        Inaccurate:     	White=1     	---        OK:         	White=1     	Black=5      Best:        	White=1     	Black=1      Strong:       	---       	Black=3} ({Weaker is} 24... Bxd1 25. Nxe4 Rc8+ 26. Bc3 $19) 0-1

[Event "2nd Namma Bengaluru Open-A 2025"]
[Site "Bengaluru"]
[Date "2025.04.15"]
[Round "7.8"]
[White "Manish Anto Cristiano F"]
[Black "Grigoryan, Karen H."]
[Result "1/2-1/2"]
[Annotator "TA"]
[ECO "C95"]
[WhiteElo "2361"]
[BlackElo "2556"]
[PlyCount "117"]
[EventDate "2025.04.10"]
[EventType "swiss"]
[EventCountry "IND"]
[SourceTitle "playchess.com"]
[Source "ChessBase"]
[SourceQuality "1"]
[TimeControl "5400+30"]

{[%evp 32,117,21,18,41,6,23,9,0,0,16,16,32,0,0,0,0,0,0,0,0,0,0,-6,0,0,0,0,0,0,0,0,0,0,0,0,0,0,0,0,0,0,-12,-12,0,-42,-42,-42,-36,-93,-41,-75,-18,-16,-16,-26,-16,-16,-16,-16,-16,-16,-17,-17,-8,-8,-8,-8,-8,-8,-8,-8,-8,-8,-8,-8,-8,-8,-8,-8,-8,-8,-8,-8,-8,-8,-8,-8]} 1. e4 {[%emt 0:00:28]} e5 {[%emt 0:00:07]} 2. Nf3 {[%emt 0:00:11]} Nc6 {[%emt 0:00:05]} 3. Bb5 {[%emt 0:00:53][%cal Bf1b5,Bb5a4,Ba4b3][%mdl 32]} a6 {[%emt 0:00:08]} 4. Ba4 {[%emt 0:00:10]} Nf6 {[%emt 0:00:10]} 5. O-O {[%emt 0:00:10]} Be7 {[%emt 0:00:05]} 6. Re1 {[%emt 0:00:33]} b5 {[%emt 0:00:07]} 7. Bb3 {[%emt 0:00:06]} d6 {[%emt 0:00:06]} 8. c3 {[%emt 0:00:10]} O-O {[%emt 0:00:08]} 9. h3 {[%emt 0:00:45]} Nb8 {[%emt 0:00:05]} 10. d4 {[%emt 0:02:00]} Nbd7 {[%emt 0:00:06]} 11. Nbd2 {[%emt 0:02:00]} Bb7 {[%emt 0:00:08]} 12. Bc2 {[%emt 0:01:30]} Re8 {[%emt 0:00:12]} 13. Nf1 {[%emt 0:00:58]} Bf8 {[%emt 0:00:08]} 14. Ng3 {[%emt 0:00:07]} g6 {[%emt 0:00:15]} 15. a4 {[%emt 0:00:17]} c5 {[%emt 0:00:29]} 16. d5 {[%emt 0:02:06]} c4 {[%emt 0:00:07]} 17. Be3 {[%emt 0:02:15]} Nc5 {[%emt 0:05:19][%cal Bd7c5,Bc5d3,Bd3f4][%mdl 32] was the old line (17...Qc7). C95: Closed Ruy Lopez: Breyer Variation with 10 d4.} 18. Nd2 {[%emt 0:12:28]} Nfd7 {[%emt 0:01:07]} 19. b4 $146 {[%emt 0:02:14]} (19. Qe2) 19... cxb3 {[%emt 0:00:07]} 20. Bxb3 {[%emt 0:00:08]} Nd3 {[%emt 0:06:17]} 21. Rf1 {[%emt 0:01:33]} Qc7 {[%emt 0:00:36]} 22. Qb1 {[%emt 0:03:43]} Nf4 {[%emt 0:01:39]} 23. c4 {[%emt 0:02:45]} b4 {[%emt 0:03:05]} 24. a5 {[%emt 0:03:59]} Nc5 {[%emt 0:01:04]} 25. Bc2 {[%emt 0:04:38]} Rab8 {[%emt 0:02:50]} 26. Nb3 {[%emt 0:01:24]} (26. Qxb4 Bxd5 27. Qc3 Be6 $14) 26... Bc8 {[%emt 0:01:02]} 27. Qd1 {[%emt 0:06:05]} Bd7 {[%emt 0:04:23]} 28. Nxc5 {[%emt 0:08:06]} dxc5 {[%emt 0:00:07]} 29. Re1 {[%emt 0:00:59]} Bd6 {[%emt 0:00:39]} 30. Nf1 {[%emt 0:03:45][%cal Bg3f1,Bf1d2,Bd2f3][%mdl 32]} Qd8 {[%emt 0:14:27]} 31. Nd2 {[%emt 0:06:12]} f5 {[%emt 0:03:00]} 32. exf5 {[%emt 0:08:43]} gxf5 {[%emt 0:01:38]} 33. Bxf4 {[%emt 0:05:35]} exf4 {[%emt 0:00:08]} 34. Rxe8+ {[%emt 0:00:13]} Qxe8 {[%emt 0:00:12]} 35. Nf3 {[%emt 0:00:25]} Kh8 {[%emt 0:12:05]} 36. Qd3 {[%emt 0:04:46]} Qg6 {[%emt 0:02:07]} 37. Kh1 {[%emt 0:04:21]} Re8 {[%emt 0:01:53]} 38. Re1 {[%emt 0:01:35]} Rxe1+ {[%emt 0:00:55]} 39. Nxe1 {[%emt 0:00:02] White is weak on the dark squares} Qf6 {[%emt 0:04:49]} 40. Nf3 {[%emt 0:01:20]} (40. Kg1 $15) 40... Kg7 {[%emt 0:05:16]} (40... Qa1+ $17 41. Qd1 Qxd1+ (41... Qxa5 42. Qb1 $11) 42. Bxd1 Bc7) 41. Kh2 {[%emt 0:01:35]} Qc3 {[%emt 0:07:09]} (41... Qa1 $17) 42. Qxc3+ $11 {[%emt 0:04:18]} bxc3 {[%emt 0:00:33][%mdl 4096] Endgame KBB-KBN} 43. Ne1 {[%emt 0:00:44]} f3+ {[%emt 0:05:20]} 44. g3 $1 {[%emt 0:00:36] The position is equal.} f4 {[%emt 0:03:01] [#] ...fxg3+ would now be deadly.} 45. Nxf3 {[%emt 0:01:30]} fxg3+ {[%emt 0:00:25]} 46. fxg3 {[%emt 0:00:01]} h5 {[%emt 0:03:59]} 47. Kg2 {[%emt 0:02:25]} Kf6 {[%emt 0:00:06] Wards off Ng5} 48. Ne1 $1 {[%emt 0:01:11]} Bc7 {[%emt 0:03:24]} 49. Nd3 {[%emt 0:00:29]} Bf5 {[%emt 0:00:07]} 50. g4 {[%emt 0:00:13]} hxg4 {[%emt 0:02:59]} 51. hxg4 {[%emt 0:00:01]} Bxg4 {[%emt 0:00:27]} 52. Nxc5 {[%emt 0:00:18]} Bxa5 {[%emt 0:00:06]} 53. Nxa6 {[%emt 0:01:50]} Be2 {[%emt 0:00:19]} 54. Nc5 {[%emt 0:01:06]} Bxc4 {[%emt 0:00:13]} 55. d6 {[%emt 0:00:24]} Ke5 {[%emt 0:00:35]} 56. d7 {[%emt 0:00:21]} Bd5+ {[%emt 0:00:05]} 57. Kf1 {[%emt 0:00:12]} Kd6 {[%emt 0:00:08]} 58. d8=Q+ {[%emt 0:00:33]} Bxd8 {[%emt 0:00:04]} 59. Ne4+ {[%emt 0:00:05] Weighted Error Value: White=0.06 (flawless) /Black=0.06 (flawless)   Mistake:       	White=1     	Black=2      Inaccurate:     	White=4     	---        OK:         	White=16    	Black=19     Best:        	White=6     	Black=2      Strong:       	White=2     	---} 1/2-1/2

[Event "2nd Namma Bengaluru Open-A 2025"]
[Site "Bengaluru"]
[Date "2025.04.15"]
[Round "7.9"]
[White "Aronyak Ghosh"]
[Black "Shahil Dey"]
[Result "1-0"]
[Annotator "TA"]
[ECO "A46"]
[WhiteElo "2525"]
[BlackElo "2360"]
[PlyCount "119"]
[EventDate "2025.04.10"]
[EventType "swiss"]
[EventCountry "IND"]
[SourceTitle "playchess.com"]
[Source "ChessBase"]
[SourceQuality "1"]
[TimeControl "5400+30"]

{[%evp 9,119,0,25,14,17,15,22,17,41,40,47,45,44,52,47,38,26,18,5,0,0,0,30,20,60,54,49,55,57,47,49,52,47,54,74,83,69,72,70,73,77,45,47,29,47,50,54,45,53,41,31,10,70,71,75,75,85,68,79,74,78,81,68,60,82,55,46,53,37,9,22,15,24,0,0,0,0,1,33,33,31,32,29,19,74,39,134,79,95,95,95,46,89,72,150,144,146,135,139,134,143,44,47,79,98,80,134,127,118,14,43,41]} 1. d4 {[%emt 0:00:19]} Nf6 {[%emt 0:00:11]} 2. Bf4 {[%emt 0:00:40]} c6 {[%emt 0:00:05]} 3. Nf3 {[%emt 0:05:19]} Qb6 {[%emt 0:00:05]} 4. b3 {[%emt 0:03:32]} d6 {[%emt 0:00:04]} 5. g3 $146 {[%emt 0:04:14]} (5. Nbd2 Nh5 6. Nc4 Qc7 7. Bd2 f5 8. g3 g6 9. Bg2 Bg7 10. O-O O-O 11. Qc1 {1-0 Abasov,N (2679)-Iturrizaga Bonelli,E (2615) FIDE Grand Swiss 2023 (2)}) 5... g6 {[%emt 0:00:07]} 6. Bg2 {[%emt 0:00:27] A46: 1 d4 Nf6 2 Nf3 e6: Torre, London and Colle Systems.} Bg7 {[%emt 0:00:07][%cal Oe7e5]} 7. O-O {[%emt 0:00:07]} O-O {[%emt 0:00:31]} 8. c4 {[%emt 0:04:39] The position is equal.} c5 {[%emt 0:09:02]} 9. dxc5 {[%emt 0:03:41]} Qxc5 {[%emt 0:06:29]} 10. Nc3 {[%emt 0:00:58] Inhibits Nd5.} Qh5 {[%emt 0:03:53]} 11. Rc1 {[%emt 0:13:27]} Nc6 {[%emt 0:03:50]} 12. Qd2 {[%emt 0:01:05]} Bh3 13. Nd5 {[%emt 0:03:26]} Ng4 {[%emt 0:17:27]} 14. Nh4 {[%emt 0:16:11]} Bxg2 {[%emt 0:03:03]} 15. Kxg2 {[%emt 0:00:20]} Nf6 {[%emt 0:21:43]} (15... e6 $5 16. h3 Nge5 $16) 16. Nf3 {[%emt 0:02:34]} Qf5 {[%emt 0:05:07]} (16... Ne4 {with more complications.} 17. Qd3 f5 18. Be3 e5) 17. Rfe1 {[%emt 0:02:31]} e5 {[%emt 0:04:32] [#] ...Ne4 is the strong threat.} 18. Nxf6+ {[%emt 0:04:44]} Qxf6 {[%emt 0:00:43]} 19. Bg5 {[%emt 0:01:13]} Qe6 {[%emt 0:00:01]} 20. Red1 {[%emt 0:03:02]} f6 {[%emt 0:05:23]} 21. Be3 {[%emt 0:02:02]} (21. Qxd6 $2 Qxd6 22. Rxd6 fxg5 23. Nxg5 Bh6 $19) 21... Rfd8 {[%emt 0:00:16]} 22. Qd5 {[%emt 0:03:02]} Kf7 {[%emt 0:01:09]} 23. Nd2 {[%emt 0:00:32][%cal Bf3d2,Bd2b1,Bb1c3][%mdl 32] White has more active pieces.} f5 {[%emt 0:01:01]} 24. Nb1 {[%emt 0:02:41]} Rd7 {[%emt 0:11:35]} 25. Qd2 {[%emt 0:05:05]} Re8 {[%emt 0:02:20][%cal Of5f4]} 26. Bh6 {[%emt 0:02:59]} f4 {[%emt 0:00:59]} 27. Bxg7 {[%emt 0:00:08]} Kxg7 {[%emt 0:00:03]} 28. Nc3 {[%emt 0:01:33]} Rf8 29. Qd5 {[%emt 0:01:16]} Qf5 {[%emt 0:01:21]} 30. Qe4 {[%emt 0:00:45] Threatening Qxf5.} fxg3 {[%emt 0:02:05]} ({Black should try} 30... Qh5 $11) 31. Qxf5 $14 {[%emt 0:00:08] Successful Defense White} gxf5 {[%emt 0:00:03]} 32. hxg3 {[%emt 0:00:05]} (32. Kxg3 Kf7 $11) 32... b6 {[%emt 0:01:07]} 33. f3 {[%emt 0:01:54]} Ne7 {[%emt 0:00:19]} 34. Kf2 {[%emt 0:00:48]} Rf6 {[%emt 0:00:59]} 35. Rd2 {[%emt 0:00:23]} Rh6 {[%emt 0:00:29]} 36. Rcd1 {[%emt 0:00:18]} Kf7 {[%emt 0:00:42]} 37. a4 {[%emt 0:01:36]} Nc6 {[%emt 0:00:25]} 38. Kg2 {[%emt 0:01:05]} Na5 {[%emt 0:00:07]} 39. Rb1 {[%emt 0:00:49]} Rg6 {[%emt 0:00:25]} 40. Kf2 {[%emt 0:00:53]} Rh6 {[%emt 0:00:04]} 41. Nb5 {[%emt 0:00:44]} Ke6 {[%emt 0:00:58]} 42. Rbd1 {[%emt 0:00:39][%cal Rd2d6]} Ke7 {[%emt 0:00:01]} 43. Rd3 $36 {[%emt 0:00:07][%mdl 2048] White fights for an advantage.} Nc6 {[%emt 0:00:36]} 44. Kg2 {[%emt 0:00:13]} Nb4 {[%emt 0:00:23]} 45. R3d2 {[%emt 0:00:14]} Nc6 {[%emt 0:00:35]} 46. f4 {[%emt 0:01:44]} Rg6 {[%emt 0:00:25]} (46... exf4 $11 {remains equal.} 47. gxf4 a6) 47. e3 {[%emt 0:00:10]} Re6 {[%emt 0:01:11] [#]} (47... Rd8 $14) 48. Rh1 {[%emt 0:00:28]} (48. fxe5 $142 $1 {[%cal Rb5d6]} Nxe5 49. Nd4) 48... Kd8 $16 {[%emt 0:00:28]} 49. Rh5 Rf6 {[%emt 0:00:30]} 50. Kf3 (50. Rg5 $16) 50... h6 {[%emt 0:00:30]} 51. Nc3 Ne7 {[%emt 0:00:30]} (51... Rdf7 $142) 52. Rdh2 Ng8 {[%emt 0:00:30]} 53. Nd5 Rf8 {[%emt 0:00:30]} 54. Ra2 Rb7 {[%emt 0:00:30]} 55. e4 ({White should try} 55. Nc3 $16) 55... fxe4+ $14 {[%emt 0:00:30]} 56. Kxe4 Rg7 {[%emt 0:00:30]} 57. a5 Nf6+ {[%emt 0:00:30]} (57... bxa5 $142 58. fxe5 (58. Rxa5 Nf6+ 59. Nxf6 Rxf6 $11) 58... dxe5) 58. Nxf6 $16 Rxf6 {[%emt 0:00:30]} 59. fxe5 (59. axb6 $16 axb6 60. Ra8+ (60. fxe5 Rg4+ 61. Kd5 dxe5 $14) 60... Ke7 61. Ra7+ (61. fxe5 dxe5 62. Ra7+ Kf8 $16) 61... Kf8 62. Rxg7 (62. fxe5 Rg4+ 63. Kd5 dxe5 $14) 62... Kxg7 63. fxe5 dxe5 64. Rxe5) 59... dxe5 {[%emt 0:00:30]} 60. Kxe5 {Weighted Error Value: White=0.13 (very precise) /Black=0.15 (very precise)   Mistake:       	White=4     	Black=5      Inaccurate:     	White=4     	Black=5      OK:         	White=21    	Black=22     Best:        	White=4     	Black=1} 1-0

[Event "2nd Namma Bengaluru Open-A 2025"]
[Site "Bengaluru"]
[Date "2025.04.15"]
[Round "7.10"]
[White "John Veny Akkarakaran"]
[Black "Chanda, Sandipan"]
[Result "0-1"]
[Annotator "TA"]
[ECO "C70"]
[WhiteElo "2350"]
[BlackElo "2485"]
[PlyCount "76"]
[EventDate "2025.04.10"]
[EventType "swiss"]
[EventCountry "IND"]
[SourceTitle "playchess.com"]
[Source "ChessBase"]
[SourceQuality "1"]
[TimeControl "5400+30"]

{[%evp 15,76,66,59,60,97,96,85,72,59,68,70,61,74,68,61,57,60,63,83,61,75,57,97,14,10,10,24,17,34,4,25,0,20,-13,-15,-52,-64,-46,-37,-39,0,-163,-159,-162,-115,-187,-180,-191,-185,-189,-195,-186,-50,-191,-150,-151,-143,-154,-148,-408,-162,-151,-154]} 1. e4 {[%emt 0:03:45]} e5 {[%emt 0:00:13]} 2. Nf3 {[%emt 0:00:09]} Nc6 {[%emt 0:00:05]} 3. Bb5 {[%emt 0:00:06]} a6 {[%emt 0:00:06]} 4. Ba4 {[%emt 0:00:05]} b5 {[%emt 0:00:07]} 5. Bb3 {[%emt 0:00:06]} Na5 {[%emt 0:00:04]} 6. O-O {[%emt 0:02:22]} Nxb3 {[%emt 0:00:08]} 7. axb3 {[%emt 0:00:07]} d6 {[%emt 0:00:07]} 8. d4 {[%emt 0:02:10]} f6 {[%emt 0:00:07]} 9. Qe2 {[%emt 0:01:13]} Bb7 {[%emt 0:04:32]} 10. Rd1 {[%emt 0:07:41]} Qc8 {[%emt 0:00:10]} 11. c4 {[%emt 0:28:12] White is better.} b4 {[%emt 0:00:36] [#]} 12. c5 $1 {[%emt 0:03:47]} exd4 {[%emt 0:08:36]} 13. cxd6 {[%emt 0:01:43]} (13. Nxd4 dxc5 14. Nc2 Qe6 $15) 13... Bxd6 14. Nxd4 {[%emt 0:22:37] Threatens to win with Nf5.} Ne7 {[%emt 0:01:58]} 15. Nd2 O-O {[%emt 0:02:45]} 16. Nc4 {[%emt 0:05:46]} Re8 {[%emt 0:02:57]} 17. Na5 {[%emt 0:03:21]} Kh8 $1 {[%emt 0:04:25]} 18. f3 {[%emt 0:06:41]} Be5 {[%emt 0:21:36]} 19. Nc4 {[%emt 0:05:04]} (19. Qc4 $16) 19... Bxd4+ $11 {[%emt 0:06:53]} 20. Rxd4 {[%emt 0:00:01]} f5 {[%emt 0:00:13]} 21. e5 {[%emt 0:00:55]} Qe6 {[%emt 0:01:33]} 22. Bf4 {[%emt 0:02:11]} Bd5 {[%emt 0:04:27]} 23. h3 {[%emt 0:02:38]} a5 {[%emt 0:02:17][%cal Oa5a4]} 24. Bg3 {[%emt 0:00:52] [#]} (24. Rxa5 $2 Rxa5 25. Nxa5 Qb6 $19 (25... Bxb3 26. Nxb3 Qxb3 27. e6 $18)) (24. Nxa5 Nc6 (24... Bxb3 $2 25. Nxb3 Qxb3 26. Rxa8 $18) 25. Rd2 Nxa5 $19 (25... Rxa5 $2 26. Rxa5 Nxa5 27. Qb5 $19)) 24... a4 $1 {[%emt 0:00:52]} 25. Rad1 {[%emt 0:00:52]} (25. bxa4 Nc6 26. Rxd5 Qxd5 $15) (25. Rxa4 Rxa4 26. bxa4 Nc6 27. Rxd5 Qxd5 $17) (25. Rd2 h6) 25... a3 {[%emt 0:08:08]} ({Much worse is} 25... axb3 $6 26. Ne3 Ra5 27. Qd2 $16 (27. Rxb4 c5 $14)) 26. bxa3 {[%emt 0:00:01]} bxa3 {[%emt 0:00:07]} 27. Ra1 $1 {[%emt 0:00:54]} Ng6 {[%emt 0:02:06]} 28. Ra2 $2 {[%emt 0:00:39] [#]} (28. Qe3 $11 {and White is okay.}) 28... f4 $1 $19 {[%emt 0:02:11][%mdl 512]} 29. Bf2 {[%emt 0:00:21]} ({Much weaker is} 29. Bxf4 c5 30. Re4 Qc6) 29... Nxe5 {[%emt 0:01:43]} 30. Nxe5 {[%emt 0:00:21]} (30. Qf1 $17 {was worth a try.}) 30... Bxb3 {[%emt 0:01:29]} ({Don't do} 30... Qxe5 31. Qd1 c6 32. Qc1 $15) 31. Ra1 {[%emt 0:00:36][%cal Od4f4] Hoping for Rxf4!} Qxe5 {[%emt 0:00:45]} 32. Qxe5 {[%emt 0:00:32]} Rxe5 {[%emt 0:00:02]} 33. Rd7 {[%emt 0:00:33]} c5 {Dodges Bd4} ({Black should try} 33... Rd5 $19 34. Rxc7 a2) 34. Rc7 {[%emt 0:00:30]} (34. Rd3 $1 $15 c4 35. Rxa3) 34... Ra5 {...a2 would now be deadly.} 35. Be1 {[%emt 0:00:30] [#]} Rxe1+ 36. Rxe1 {[%emt 0:00:30]} a2 37. Rc8+ {[%emt 0:00:30]} Bg8 38. Ra1 {[%emt 0:00:30]} g5 {Weighted Error Value: White=0.42/Black=0.14 (very precise) .  Loses game:     	White=1     	---        Mistake:       	White=3     	Black=1      Inaccurate:     	White=3     	Black=4      OK:         	White=7     	Black=12     Best:        	White=1     	Black=5      Strong:       	White=1     	Black=1      Brilliant:      	---       	Black=1} 0-1

[Event "2nd Namma Bengaluru Open-A 2025"]
[Site "Bengaluru"]
[Date "2025.04.15"]
[Round "7.11"]
[White "Krishna Teja, N."]
[Black "Stany, G.A."]
[Result "0-1"]
[Annotator "RC"]
[ECO "D91"]
[WhiteElo "2321"]
[BlackElo "2454"]
[PlyCount "48"]
[EventDate "2025.04.10"]
[EventType "swiss"]
[EventCountry "IND"]
[SourceTitle "playchess.com"]
[Source "ChessBase"]
[SourceQuality "1"]
[TimeControl "5400+30"]

1. d4 {[%emt 0:03:22]} Nf6 {[%emt 0:00:18]} 2. c4 {[%emt 0:00:12]} g6 {[%emt 0:00:23]} 3. Nc3 {[%emt 0:02:11]} d5 {[%emt 0:00:05]} 4. Nf3 {[%emt 0:01:16]} Bg7 {[%emt 0:00:05]} 5. Bg5 {[%emt 0:00:10]} Ne4 {[%emt 0:00:28]} 6. Bf4 {[%emt 0:00:06]} Nxc3 {[%emt 0:01:14]} 7. bxc3 {[%emt 0:00:03]} dxc4 {[%emt 0:07:00]} 8. e3 {[%emt 0:00:34]} Be6 {[%emt 0:00:16]} 9. Qb1 {[%emt 0:01:56]} Qd5 {[%emt 0:16:54]} 10. Ng5 {[%emt 0:13:28]} Qa5 {[%emt 0:08:55]} 11. Nxe6 {[%emt 0:27:04]} Qxc3+ {[%emt 0:00:51]} 12. Ke2 {[%emt 0:00:07]} fxe6 {[%emt 0:00:04]} 13. g3 {[%emt 0:00:09]} e5 {[%emt 0:10:12]} 14. Bg2 {[%emt 0:06:53]} exf4 {[%emt 0:08:30]} 15. Bxb7 {[%emt 0:00:41]} fxe3 {[%emt 0:00:19]} 16. fxe3 {[%emt 0:00:52]} Bh6 {[%emt 0:04:29]} 17. Qe4 {[%emt 0:07:02]} Qb2+ {[%emt 0:02:36]} 18. Kf3 {[%emt 0:01:07]} Nd7 {[%emt 0:00:09]} 19. Rab1 {[%emt 0:06:48]} O-O+ {[%emt 0:00:39]} 20. Kg4 {[%emt 0:00:03]} Nf6+ {[%emt 0:00:29]} 21. Kh4 {[%emt 0:00:29]} Nxe4 {[%emt 0:05:07]} 22. Rxb2 {[%emt 0:00:06]} Rab8 {[%emt 0:00:11]} 23. Bd5+ {[%emt 0:00:36]} e6 {[%emt 0:00:03]} 24. Rxb8 {[%emt 0:02:59]} exd5 {[%emt 0:00:11]} 0-1

[Event "2nd Namma Bengaluru Open-A 2025"]
[Site "Bengaluru"]
[Date "2025.04.15"]
[Round "7.12"]
[White "Goutham Krishna H"]
[Black "Subhayan Kundu"]
[Result "1/2-1/2"]
[Annotator "RC"]
[ECO "A12"]
[WhiteElo "2449"]
[BlackElo "2356"]
[PlyCount "61"]
[EventDate "2025.04.10"]
[EventType "swiss"]
[EventCountry "IND"]
[SourceTitle "playchess.com"]
[Source "ChessBase"]
[SourceQuality "1"]
[TimeControl "5400+30"]

1. b3 {[%emt 0:00:21]} d5 {[%emt 0:01:25]} 2. Bb2 {[%emt 0:00:15]} Bf5 {[%emt 0:00:41]} 3. Nf3 {[%emt 0:00:52]} e6 {[%emt 0:00:55]} 4. g3 {[%emt 0:00:09]} h6 {[%emt 0:00:17]} 5. Bg2 {[%emt 0:00:10]} Nf6 {[%emt 0:00:05]} 6. O-O {[%emt 0:00:42]} Be7 {[%emt 0:00:26]} 7. d3 {[%emt 0:01:38]} O-O {[%emt 0:00:26]} 8. Nbd2 {[%emt 0:00:05]} c6 {[%emt 0:02:00]} 9. c4 {[%emt 0:01:06]} Nbd7 {[%emt 0:00:32]} 10. a3 {[%emt 0:00:41]} a5 {[%emt 0:00:10]} 11. Ra2 {[%emt 0:08:52]} Bh7 {[%emt 0:02:14]} 12. Qa1 {[%emt 0:00:33]} Qb6 {[%emt 0:05:14]} 13. Ne5 {[%emt 0:02:01]} Nxe5 {[%emt 0:06:35]} 14. Bxe5 {[%emt 0:00:02]} Rfd8 {[%emt 0:01:46]} 15. Rc2 {[%emt 0:22:35]} Qc5 {[%emt 0:09:11]} 16. Rfc1 {[%emt 0:20:48]} Ng4 {[%emt 0:26:11]} 17. Bd4 {[%emt 0:00:42]} Qd6 {[%emt 0:05:41]} 18. c5 {[%emt 0:06:21]} Qc7 {[%emt 0:02:33]} 19. h3 {[%emt 0:02:01]} Nf6 {[%emt 0:00:06]} 20. Nf3 {[%emt 0:01:54]} Ne8 {[%emt 0:07:03]} 21. Rb1 {[%emt 0:03:54]} f6 {[%emt 0:01:15]} 22. Nd2 {[%emt 0:03:52]} e5 {[%emt 0:00:38]} 23. Bb2 {[%emt 0:00:07]} Qd7 {[%emt 0:02:31]} 24. Re1 {[%emt 0:02:27]} Nc7 {[%emt 0:00:20]} 25. Qc1 {[%emt 0:00:16]} Ne6 {[%emt 0:01:37]} 26. Nf1 {[%emt 0:01:36]} Rdb8 {[%emt 0:01:50]} 27. e4 {[%emt 0:00:50]} dxe4 {[%emt 0:04:26]} 28. dxe4 {[%emt 0:00:10]} Rd8 {[%emt 0:00:04]} 29. b4 {[%emt 0:04:06]} axb4 {[%emt 0:00:22]} 30. axb4 {[%emt 0:00:01]} Nd4 {[%emt 0:01:52]} 31. Rd2 {[%emt 0:16:53]} 1/2-1/2